Workbook

Sheet Spieler
B1: Spieler | C1: Gemeldet | D1: Startgeld 20€+15€ | G1: Century Jackpot: | I1: 89
A2: 1 | B2: Marec Stachly | C2: ok | E2: =IF(B2="",0,IF(D2="X",5000016,RAND()*1000*20)) -> 13810.94954 | G2: Jackpotberechnung
A3: 2 | B3: Felix Kirsten | C3: ok | E3: =IF(B3="",0,IF(D3="X",5000014,RAND()*1000*20)) -> 9056.834081 | F3: Aktualisierung: | G3: 10.09.2022 - 15:10 Uhr | J3: Jackpotsumme: | L3: 414.5 | M3: =L3*N3 -> 82.9 | N3: 0.2
A4: 3 | B4: Marco Weber | C4: ok | E4: =IF(B4="",0,IF(D4="X",5000013,RAND()*1000*20)) -> 13028.22032 | J4: Startgeld Champions Cup: | L4: 20 | M4: =L4*16 -> 320
A5: 4 | B5: Tino Delling | C5: ok | E5: =IF(B5="",0,IF(D5="X",5000008,RAND()*1000*20)) -> 11538.43156 | J5: Champion Cup 20%: | L5: =L3-M3 -> 331.6 | M5: =SUM(M3:M4) -> 402.9
A6: 5 | B6: Gustav Hollnagel | C6: ok | E6: =IF(B6="",0,IF(D6="X",5000006,RAND()*1000*20)) -> 11654.44457
A7: 6 | B7: Joel Fandrei | C7: ok | E7: =IF(B7="",0,IF(D7="X",5000003,RAND()*1000*20)) -> 17654.6099 | G7: Gesamtjackpot | K7: Champions Cup
A8: 7 | B8: Marko Straßburger | C8: ok | E8: =IF(B8="",0,IF(D8="X",5000007,RAND()*1000*20)) -> 10502.19134 | G8: 1 | H8: 0.19 | I8: =$L$5*H8 -> 63.004 | J8: Marec Stachly | K8: Platz 1 | L8: 0.35 | M8: =$M$5*L8 -> 141.015
A9: 8 | B9: Moritz Thomas | C9: ok | E9: =IF(B9="",0,IF(D9="X",5000015,RAND()*1000*20)) -> 18068.36791 | G9: 2 | H9: 0.15 | I9: =$L$5*H9 -> 49.74 | J9: Felix Kirsten | K9: Platz 2 | L9: 0.2 | M9: =$M$5*L9 -> 80.58
A10: 9 | B10: Magnus Suttner | C10: ok | E10: =IF(B10="",0,IF(D10="X",5000011,RAND()*1000*20)) -> 3823.704151 | G10: 3 | H10: 0.12 | I10: 39.792 | J10: Marco Weber | K10: Platz 3 | L10: 0.15 | M10: =$M$5*L10 -> 60.435
A11: 10 | B11: Max Weber | C11: ok | E11: =IF(B11="",0,IF(D11="X",5000001,RAND()*1000*20)) -> 14723.2329 | G11: 4 | H11: 0.1 | I11: 33.16 | J11: Tino Delling | K11: Platz 4 | L11: 0.1 | M11: 40.29
A12: 11 | B12: Andreas Fandrei | C12: ok | E12: =IF(B12="",0,IF(D12="X",5000017,RAND()*1000*20)) -> 19679.32135 | G12: 5 | H12: 0.06 | I12: 19.896 | J12: David Gärtner | K12: Platz 5 | L12: 0.05 | M12: 20.145
A13: 12 | B13: Paul Jeroch | C13: ok | E13: =IF(B13="",0,IF(D13="X",5000010,RAND()*1000*20)) -> 19759.62212 | G13: 6 | H13: 0.06 | I13: 19.896 | J13: Joel Fandrei | K13: Platz 6 | L13: 0.05 | M13: 20.145
A14: 13 | B14: Marcus Müller | C14: ok | E14: =IF(B14="",0,IF(D14="X",5000005,RAND()*1000*20)) -> 9651.18802 | G14: 7 | H14: 0.06 | I14: 19.896 | J14: Marko Straßburger | K14: Platz 7 | L14: 0.05 | M14: 20.145
A15: 14 | B15: Andreas Hartung | C15: ok | E15: =IF(B15="",0,IF(D15="X",5000019,RAND()*1000*20)) -> 18812.65716 | G15: 8 | H15: 0.06 | I15: 19.896 | J15: Moritz Thomas | K15: Platz 8 | L15: 0.05 | M15: 20.145
A16: 15 | B16: Ronny Rejke | C16: ok | E16: =IF(B16="",0,IF(D16="X",5000012,RAND()*1000*20)) -> 7832.841073 | G16: 9 | H16: 0.03 | I16: 9.948 | J16: Magnus Suttner
A17: 16 | B17: Ali Kirim | C17: ok | E17: =IF(B17="",0,IF(D17="X",5000018,RAND()*1000*20)) -> 17177.14145 | G17: 10 | H17: 0.03 | I17: 9.948 | J17: Max Weber | K17: Prüfsumme: | L17: =SUM(L8:L15) -> 1 | M17: =SUM(M8:M15) -> 402.9
A18: Wer sich nicht rechtzeitig anmeldet, verliert seinen Startplatz! | G18: 11 | H18: 0.03 | I18: 9.948 | J18: Andreas Fandrei
B19: Nachrücker | G19: 12 | H19: 0.03 | I19: 9.948 | J19: Muhammad Umer
A20: 17 | B20: Christian Gabriel | G20: 13 | H20: 0.02 | I20: 6.632 | J20: Marcus Müller
A21: 18 | B21: Behnam Ahmadi | C21: vorgemerkt | G21: 14 | H21: 0.02 | I21: 6.632 | J21: Andreas Hartung
A22: 19 | B22: Gustav Hollnagel | C22: vorgemerkt | G22: 15 | H22: 0.02 | I22: 6.632 | J22: Ronny Rejke
A23: 20 | B23: Thomas Fritz | G23: 16 | H23: 0.02 | I23: 6.632 | J23: Ali Kirim
A24: 21 | B24: Sebastian Lux
A25: 22 | B25: Paul Jeroch | C25: vorgemerkt | G25: Prüfsumme: | H25: =SUM(H8:H23) -> 1 | I25: 334
A26: 23 | B26: Michael Kandler | G26: 30€ gehen wieder in den Jackpot für die aktuelle Saison.
A27: 24 | B27: Hans Bergmann
A28: 25 | B28: Michael Seidel | G28: Meldeschluss ist der 10.09.2022, 24:00 Uhr!
A29: 26 | B29: Ulrich Löffel | G29: Die Nachrücker werden gelost!
A30: 27 | B30: Sven Ohlenroth | G30: Jeder Nachrücker zieht sein Los am Turniertag!
A31: 28 | B31: Christopher Jaritz | C31: vorgemerkt | G31: Allen Teilnehmern des Champions Cup sind die Teilnahmebedingungen bekannt und werden akzeptiert!
A32: 29 | B32: Stephan Kallies | G32: Nachzulesen: | H32: https://www.saxonian-snooker.de/3LaenderRanking/3lr-regularien.pdf
A33: 30 | B33: Faiz Elham | C33: vorgemerkt
A34: 31 | B34: Christopher Buße
A35: 32 | B35: Tom Müller
A36: 33 | B36: Holger Hänel
A37: 34 | B37: Volker Stahl
A38: 35 | B38: Andreas Hollin
A39: 36 | B39: Stev Karries
A40: 37 | B40: Roger Frank
A41: 38 | B41: Thomas Metzler
A42: 39 | B42: Matthias Bauer
A43: 40 | B43: Rene Scheurer
A44: 41 | B44: Timo Veit
A45: 42 | B45: Frank Rapior
A46: 43 | B46: Salvador Valderrama
A47: 44 | B47: Johannes Schranz | C47: vorgemerkt

Sheet Gruppen
A1: A | C1: Spieler | D1: M | E1: W | F1: L | G1: F+ | H1: F- | L1: Rang | M1: Rang | N1: P+ | R1: Startzeit | S1: Spieler | T1: Spieler | V1: Breaks 30+ | W1: F+ | X1: F- | AC1: Breaks 30+
B2: 1 | C2: =VLOOKUP(B2,Spieler!$A$2:$B$17,2,FALSE) -> Marec Stachly | D2: =Y2+Y5+Y7 -> 3 | E2: =Z2+Z5+Z7 -> 3 | F2: =AA2+AA5+AA7 -> 0 | G2: =W2+W5+W7 -> 6 | H2: =X2+X5+X7 -> 1 | L2: =IF(C2="",(-90000),(E2*1000)+(G2*100)+D2-(F2*500)-(H2*50)-N2) -> 3553 | M2: =IF(D2=0,"",RANK(L2,L2:L5)) -> 1 | O2: =IF(C2="","",C2) -> Marec Stachly | Q2: 1 | S2: =C2 -> Marec Stachly | T2: =C3 -> Gustav Hollnagel | W2: =Matches!E3 -> 2 | X2: =Matches!F3 -> 0 | Y2: =IF(OR(W2>X2,X2>W2),1) -> 1 | Z2: =IF(W2>X2,1,0) -> 1 | AA2: =IF(X2>W2,1,0) -> 0
B3: 5 | C3: =VLOOKUP(B3,Spieler!$A$2:$B$17,2,FALSE) -> Gustav Hollnagel | D3: =Y2+Y4+Y6 -> 3 | E3: =AA2+Z4+Z6 -> 0 | F3: =Z2+AA4+AA6 -> 3 | G3: =X2+W4+W6 -> 2 | H3: =W2+X4+X6 -> 6 | L3: =IF(C3="",(-90000),(E3*1000)+(G3*100)+D3-(F3*500)-(H3*50)-N3) -> -1597 | M3: =IF(D3=0,"",RANK(L3,L2:L5)) -> 4 | O3: =IF(C3="","",C3) -> Gustav Hollnagel | Q3: 2 | S3: =IF(C5="","",C4) -> Paul Jeroch | T3: =IF(S3="","",C5) -> Ali Kirim | W3: =Matches!E9 -> 1 | X3: =Matches!F9 -> 2 | Y3: =IF(OR(W3>X3,X3>W3),1) -> 1 | Z3: =IF(W3>X3,1,0) -> 0 | AA3: =IF(X3>W3,1,0) -> 1
B4: 12 | C4: =VLOOKUP(B4,Spieler!$A$2:$B$17,2,FALSE) -> Paul Jeroch | D4: =Y3+Y4+Y7 -> 3 | E4: =Z3+AA4+AA7 -> 1 | F4: =AA3+Z4+Z7 -> 2 | G4: =W3+X4+X7 -> 3 | H4: =X3+W4+W7 -> 5 | L4: 53 | M4: =IF(D4=0,"",RANK(L4,L2:L5)) -> 3 | O4: Paul Jeroch | Q4: 3 | S4: =T2 -> Gustav Hollnagel | T4: =C4 -> Paul Jeroch | W4: =Matches!E13 -> 1 | X4: =Matches!F13 -> 2 | Y4: 1 | Z4: 0 | AA4: 1
B5: 16 | C5: =VLOOKUP(B5,Spieler!$A$2:$B$17,2,FALSE) -> Ali Kirim | D5: =Y3+Y6+Y5 -> 3 | E5: =AA3+AA6+AA5 -> 2 | F5: =Z3+Z6+Z5 -> 1 | G5: =X3+X6+X5 -> 5 | H5: =W3+W6+W5 -> 4 | L5: 1803 | M5: =IF(D5=0,"",RANK(L5,L2:L5)) -> 2 | O5: Ali Kirim | Q5: 4 | S5: =IF(C5="","",S2) -> Marec Stachly | T5: =C5 -> Ali Kirim | W5: =Matches!E17 -> 2 | X5: =Matches!F17 -> 1 | Y5: 1 | Z5: 1 | AA5: 0
Q6: 5 | S6: =IF(C5="","",C3) -> Gustav Hollnagel | T6: =IF(S6="","",C5) -> Ali Kirim | W6: =Matches!E20 -> 1 | X6: =Matches!F20 -> 2 | Y6: 1 | Z6: 0 | AA6: 1
Q7: 6 | S7: =C2 -> Marec Stachly | T7: =C4 -> Paul Jeroch | W7: =Matches!E26 -> 2 | X7: =Matches!F26 -> 0 | Y7: 1 | Z7: 1 | AA7: 0
A10: B | C10: Spieler | D10: M | E10: W | F10: L | G10: F+ | H10: F- | L10: Rang | M10: Rang | N10: P+ | R10: Startzeit | S10: Spieler | T10: Spieler | V10: Breaks 30+ | W10: F+ | X10: F- | AC10: Breaks 30+
B11: 2 | C11: =VLOOKUP(B11,Spieler!$A$2:$B$17,2,FALSE) -> Felix Kirsten | D11: =Y11+Y14+Y16 -> 3 | E11: =Z11+Z14+Z16 -> 3 | F11: =AA11+AA14+AA16 -> 0 | G11: =W11+W14+W16 -> 6 | H11: =X11+X14+X16 -> 1 | L11: =IF(C11="",(-90000),(E11*1000)+(G11*100)+D11-(F11*500)-(H11*50)-N11) -> 3553 | M11: =IF(D11=0,"",RANK(L11,L11:L14)) -> 1 | O11: =IF(C11="","",C11) -> Felix Kirsten | Q11: 1 | S11: =C11 -> Felix Kirsten | T11: =C12 -> Joel Fandrei | W11: =Matches!E4 -> 2 | X11: =Matches!F4 -> 1 | Y11: =IF(OR(W11>X11,X11>W11),1) -> 1 | Z11: =IF(W11>X11,1,0) -> 1 | AA11: =IF(X11>W11,1,0) -> 0
B12: 6 | C12: =VLOOKUP(B12,Spieler!$A$2:$B$17,2,FALSE) -> Joel Fandrei | D12: =Y11+Y13+Y15 -> 3 | E12: =AA11+Z13+Z15 -> 2 | F12: =Z11+AA13+AA15 -> 1 | G12: =X11+W13+W15 -> 5 | H12: =W11+X13+X15 -> 2 | L12: =IF(C12="",(-90000),(E12*1000)+(G12*100)+D12-(F12*500)-(H12*50)-N12) -> 1903 | M12: =IF(D12=0,"",RANK(L12,L11:L14)) -> 2 | O12: =IF(C12="","",C12) -> Joel Fandrei | Q12: 2 | S12: =IF(C14="","",C13) -> Andreas Fandrei | T12: =IF(S12="","",C14) -> Ronny Rejke | W12: =Matches!E10 -> 2 | X12: =Matches!F10 -> 0 | Y12: =IF(OR(W12>X12,X12>W12),1) -> 1 | Z12: =IF(W12>X12,1,0) -> 1 | AA12: =IF(X12>W12,1,0) -> 0
B13: 11 | C13: =VLOOKUP(B13,Spieler!$A$2:$B$17,2,FALSE) -> Andreas Fandrei | D13: =Y12+Y13+Y16 -> 3 | E13: =Z12+AA13+AA16 -> 1 | F13: =AA12+Z13+Z16 -> 2 | G13: =W12+X13+X16 -> 2 | H13: =X12+W13+W16 -> 4 | L13: 3 | M13: =IF(D13=0,"",RANK(L13,L11:L14)) -> 3 | O13: Andreas Fandrei | Q13: 3 | S13: =T11 -> Joel Fandrei | T13: =C13 -> Andreas Fandrei | W13: =Matches!E12 -> 2 | X13: =Matches!F12 -> 0 | Y13: 1 | Z13: 1 | AA13: 0
B14: 15 | C14: =VLOOKUP(B14,Spieler!$A$2:$B$17,2,FALSE) -> Ronny Rejke | D14: =Y12+Y15+Y14 -> 3 | E14: =AA12+AA15+AA14 -> 0 | F14: =Z12+Z15+Z14 -> 3 | G14: =X12+X15+X14 -> 0 | H14: =W12+W15+W14 -> 6 | L14: -1797 | M14: =IF(D14=0,"",RANK(L14,L11:L14)) -> 4 | O14: Ronny Rejke | Q14: 4 | S14: =IF(C14="","",S11) -> Felix Kirsten | T14: =C14 -> Ronny Rejke | W14: =Matches!E18 -> 2 | X14: =Matches!F18 -> 0 | Y14: 1 | Z14: 1 | AA14: 0
Q15: 5 | S15: =IF(C14="","",C12) -> Joel Fandrei | T15: =IF(S15="","",C14) -> Ronny Rejke | W15: =Matches!E19 -> 2 | X15: =Matches!F19 -> 0 | Y15: 1 | Z15: 1 | AA15: 0
Q16: 6 | S16: =C11 -> Felix Kirsten | T16: =C13 -> Andreas Fandrei | W16: =Matches!E25 -> 2 | X16: =Matches!F25 -> 0 | Y16: 1 | Z16: 1 | AA16: 0
A19: C | C19: Spieler | D19: M | E19: W | F19: L | G19: F+ | H19: F- | L19: Rang | M19: Rang | N19: P+ | R19: Startzeit | S19: Spieler | T19: Spieler | V19: Breaks 30+ | W19: F+ | X19: F- | AC19: Breaks 30+
B20: 3 | C20: =VLOOKUP(B20,Spieler!$A$2:$B$17,2,FALSE) -> Marco Weber | D20: =Y20+Y23+Y25 -> 3 | E20: =Z20+Z23+Z25 -> 2 | F20: =AA20+AA23+AA25 -> 1 | G20: =W20+W23+W25 -> 5 | H20: =X20+X23+X25 -> 2 | L20: =IF(C20="",(-90000),(E20*1000)+(G20*100)+D20-(F20*500)-(H20*50)-N20) -> 1903 | M20: =IF(D20=0,"",RANK(L20,L20:L23)) -> 2 | O20: =IF(C20="","",C20) -> Marco Weber | Q20: 1 | S20: =C20 -> Marco Weber | T20: =C21 -> Marko Straßburger | W20: =Matches!E7 -> 2 | X20: =Matches!F7 -> 0 | Y20: =IF(OR(W20>X20,X20>W20),1) -> 1 | Z20: =IF(W20>X20,1,0) -> 1 | AA20: =IF(X20>W20,1,0) -> 0
B21: 7 | C21: =VLOOKUP(B21,Spieler!$A$2:$B$17,2,FALSE) -> Marko Straßburger | D21: =Y20+Y22+Y24 -> 3 | E21: =AA20+Z22+Z24 -> 0 | F21: =Z20+AA22+AA24 -> 3 | G21: =X20+W22+W24 -> 1 | H21: =W20+X22+X24 -> 6 | L21: =IF(C21="",(-90000),(E21*1000)+(G21*100)+D21-(F21*500)-(H21*50)-N21) -> -1697 | M21: =IF(D21=0,"",RANK(L21,L20:L23)) -> 4 | O21: =IF(C21="","",C21) -> Marko Straßburger | Q21: 2 | S21: =IF(C23="","",C22) -> Max Weber | T21: =IF(S21="","",C23) -> Andreas Hartung | W21: =Matches!E5 -> 2 | X21: =Matches!F5 -> 1 | Y21: =IF(OR(W21>X21,X21>W21),1) -> 1 | Z21: =IF(W21>X21,1,0) -> 1 | AA21: =IF(X21>W21,1,0) -> 0
B22: 10 | C22: =VLOOKUP(B22,Spieler!$A$2:$B$17,2,FALSE) -> Max Weber | D22: =Y21+Y22+Y25 -> 3 | E22: =Z21+AA22+AA25 -> 3 | F22: =AA21+Z22+Z25 -> 0 | G22: =W21+X22+X25 -> 6 | H22: =X21+W22+W25 -> 2 | L22: 3503 | M22: =IF(D22=0,"",RANK(L22,L20:L23)) -> 1 | O22: Max Weber | Q22: 3 | S22: =T20 -> Marko Straßburger | T22: =C22 -> Max Weber | W22: =Matches!E11 -> 0 | X22: =Matches!F11 -> 2 | Y22: 1 | Z22: 0 | AA22: 1
B23: 14 | C23: =VLOOKUP(B23,Spieler!$A$2:$B$17,2,FALSE) -> Andreas Hartung | D23: =Y21+Y24+Y23 -> 3 | E23: =AA21+AA24+AA23 -> 1 | F23: =Z21+Z24+Z23 -> 2 | G23: =X21+X24+X23 -> 3 | H23: =W21+W24+W23 -> 5 | L23: 53 | M23: =IF(D23=0,"",RANK(L23,L20:L23)) -> 3 | O23: Andreas Hartung | Q23: 4 | S23: =IF(C23="","",S20) -> Marco Weber | T23: =C23 -> Andreas Hartung | W23: =Matches!E16 -> 2 | X23: =Matches!F16 -> 0 | Y23: 1 | Z23: 1 | AA23: 0
Q24: 5 | S24: =IF(C23="","",C21) -> Marko Straßburger | T24: =IF(S24="","",C23) -> Andreas Hartung | W24: =Matches!E22 -> 1 | X24: =Matches!F22 -> 2 | Y24: 1 | Z24: 0 | AA24: 1
Q25: 6 | S25: =C20 -> Marco Weber | T25: =C22 -> Max Weber | W25: =Matches!E23 -> 1 | X25: =Matches!F23 -> 2 | Y25: 1 | Z25: 0 | AA25: 1
A28: D | C28: Spieler | D28: M | E28: W | F28: L | G28: F+ | H28: F- | L28: Rang | M28: Rang | N28: P+ | R28: Startzeit | S28: Spieler | T28: Spieler | V28: Breaks 30+ | W28: F+ | X28: F- | AC28: Breaks 30+
B29: 4 | C29: =VLOOKUP(B29,Spieler!$A$2:$B$17,2,FALSE) -> Tino Delling | D29: =Y29+Y32+Y34 -> 3 | E29: =Z29+Z32+Z34 -> 1 | F29: =AA29+AA32+AA34 -> 2 | G29: =W29+W32+W34 -> 2 | H29: =X29+X32+X34 -> 4 | L29: =IF(C29="",(-90000),(E29*1000)+(G29*100)+D29-(F29*500)-(H29*50)-N29) -> 3 | M29: =IF(D29=0,"",RANK(L29,L29:L32)) -> 3 | O29: =IF(C29="","",C29) -> Tino Delling | Q29: 1 | S29: =C29 -> Tino Delling | T29: =C30 -> Moritz Thomas | W29: =Matches!E8 -> 0 | X29: =Matches!F8 -> 2 | Y29: =IF(OR(W29>X29,X29>W29),1) -> 1 | Z29: =IF(W29>X29,1,0) -> 0 | AA29: =IF(X29>W29,1,0) -> 1
B30: 8 | C30: =VLOOKUP(B30,Spieler!$A$2:$B$17,2,FALSE) -> Moritz Thomas | D30: =Y29+Y31+Y33 -> 3 | E30: =AA29+Z31+Z33 -> 2 | F30: =Z29+AA31+AA33 -> 1 | G30: =X29+W31+W33 -> 4 | H30: =W29+X31+X33 -> 2 | L30: =IF(C30="",(-90000),(E30*1000)+(G30*100)+D30-(F30*500)-(H30*50)-N30) -> 1803 | M30: =IF(D30=0,"",RANK(L30,L29:L32)) -> 2 | O30: =IF(C30="","",C30) -> Moritz Thomas | Q30: 2 | S30: =IF(C32="","",C31) -> Magnus Suttner | T30: =IF(S30="","",C32) -> Marcus Müller | W30: =Matches!E6 -> 2 | X30: =Matches!F6 -> 0 | Y30: =IF(OR(W30>X30,X30>W30),1) -> 1 | Z30: =IF(W30>X30,1,0) -> 1 | AA30: =IF(X30>W30,1,0) -> 0
B31: 9 | C31: =VLOOKUP(B31,Spieler!$A$2:$B$17,2,FALSE) -> Magnus Suttner | D31: =Y30+Y31+Y34 -> 3 | E31: =Z30+AA31+AA34 -> 3 | F31: =AA30+Z31+Z34 -> 0 | G31: =W30+X31+X34 -> 6 | H31: =X30+W31+W34 -> 0 | L31: 3603 | M31: =IF(D31=0,"",RANK(L31,L29:L32)) -> 1 | O31: Magnus Suttner | Q31: 3 | S31: =T29 -> Moritz Thomas | T31: =C31 -> Magnus Suttner | W31: =Matches!E14 -> 0 | X31: =Matches!F14 -> 2 | Y31: 1 | Z31: 0 | AA31: 1
B32: 13 | C32: =VLOOKUP(B32,Spieler!$A$2:$B$17,2,FALSE) -> Marcus Müller | D32: =Y30+Y33+Y32 -> 3 | E32: =AA30+AA33+AA32 -> 0 | F32: =Z30+Z33+Z32 -> 3 | G32: =X30+X33+X32 -> 0 | H32: =W30+W33+W32 -> 6 | L32: -1797 | M32: =IF(D32=0,"",RANK(L32,L29:L32)) -> 4 | O32: Marcus Müller | Q32: 4 | S32: =IF(C32="","",S29) -> Tino Delling | T32: =C32 -> Marcus Müller | W32: =Matches!E15 -> 2 | X32: =Matches!F15 -> 0 | Y32: 1 | Z32: 1 | AA32: 0
Q33: 5 | S33: =IF(C32="","",C30) -> Moritz Thomas | T33: =IF(S33="","",C32) -> Marcus Müller | W33: =Matches!E21 -> 2 | X33: =Matches!F21 -> 0 | Y33: 1 | Z33: 1 | AA33: 0
Q34: 6 | S34: =C29 -> Tino Delling | T34: =C31 -> Magnus Suttner | W34: =Matches!E24 -> 0 | X34: =Matches!F24 -> 2 | Y34: 1 | Z34: 0 | AA34: 1

Sheet Matches
A1: Ansetzungen Champions Cup 2022
B2: Nr. | C2: Startzeit | D2: Spieler | E2: F+ | F2: F- | G2: Spieler | H2: Break 30+ Sp1 | I2: Break 30+ Sp2
A3: Tisch | B3: 1 | C3: 10:00:00 | D3: =Gruppen!S2 -> Marec Stachly | E3: 2 | F3: 0 | G3: =Gruppen!T2 -> Gustav Hollnagel
A4: Tisch | B4: 4 | C4: 10:00:00 | D4: =Gruppen!S11 -> Felix Kirsten | E4: 2 | F4: 1 | G4: =Gruppen!T11 -> Joel Fandrei | H4: 40.36 | I4: 69
A5: Tisch | B5: 2 | C5: 10:00:00 | D5: =Gruppen!S21 -> Max Weber | E5: 2 | F5: 1 | G5: =Gruppen!T21 -> Andreas Hartung
A6: Tisch | B6: 3 | C6: 10:00:00 | D6: =Gruppen!S30 -> Magnus Suttner | E6: 2 | F6: 0 | G6: =Gruppen!T30 -> Marcus Müller
A7: Tisch | B7: 1 | C7: 11:11:00 | D7: =Gruppen!S20 -> Marco Weber | E7: 2 | F7: 0 | G7: =Gruppen!T20 -> Marko Straßburger
A8: Tisch | B8: 4 | C8: 11:11:00 | D8: =Gruppen!S29 -> Tino Delling | E8: 0 | F8: 2 | G8: =Gruppen!T29 -> Moritz Thomas | I8: 46
A9: Tisch | B9: 2 | C9: 11:26:00 | D9: =Gruppen!S3 -> Paul Jeroch | E9: 1 | F9: 2 | G9: =Gruppen!T3 -> Ali Kirim
A10: Tisch | B10: 3 | C10: 11:11:00 | D10: =Gruppen!S12 -> Andreas Fandrei | E10: 2 | F10: 0 | G10: =Gruppen!T12 -> Ronny Rejke
A11: Tisch | B11: 1 | C11: 11:47:00 | D11: =Gruppen!S22 -> Marko Straßburger | E11: 0 | F11: 2 | G11: =Gruppen!T22 -> Max Weber
A12: Tisch | B12: 4 | C12: !! | D12: =Gruppen!S13 -> Joel Fandrei | E12: 2 | F12: 0 | G12: =Gruppen!T13 -> Andreas Fandrei
A13: Tisch | B13: 2 | C13: 12:40:00 | D13: =Gruppen!S4 -> Gustav Hollnagel | E13: 1 | F13: 2 | G13: =Gruppen!T4 -> Paul Jeroch
A14: Tisch | B14: 3 | C14: 12:22:00 | D14: =Gruppen!S31 -> Moritz Thomas | E14: 0 | F14: 2 | G14: =Gruppen!T31 -> Magnus Suttner | H14: 33 | I14: 37
A15: Tisch | B15: 1 | C15: 12:54:00 | D15: =Gruppen!S32 -> Tino Delling | E15: 2 | F15: 0 | G15: =Gruppen!T32 -> Marcus Müller
A16: Tisch | B16: 4 | C16: 13:24:00 | D16: =Gruppen!S23 -> Marco Weber | E16: 2 | F16: 0 | G16: =Gruppen!T23 -> Andreas Hartung
A17: Tisch | B17: 2 | C17: 13:39:00 | D17: =Gruppen!S5 -> Marec Stachly | E17: 2 | F17: 1 | G17: =Gruppen!T5 -> Ali Kirim | H17: 36
A18: Tisch | B18: 3 | C18: 12:25:00 | D18: =Gruppen!S14 -> Felix Kirsten | E18: 2 | F18: 0 | G18: =Gruppen!T14 -> Ronny Rejke
A19: Tisch | B19: 1 | C19: 13:40:00 | D19: =Gruppen!S15 -> Joel Fandrei | E19: 2 | F19: 0 | G19: =Gruppen!T15 -> Ronny Rejke | H19: 55
A20: Tisch | B20: 4 | C20: 15:02:00 | D20: =Gruppen!S6 -> Gustav Hollnagel | E20: 1 | F20: 2 | G20: =Gruppen!T6 -> Ali Kirim
A21: Tisch | B21: 2 | C21: 13:43:00 | D21: =Gruppen!S33 -> Moritz Thomas | E21: 2 | F21: 0 | G21: =Gruppen!T33 -> Marcus Müller
A22: Tisch | B22: 3 | C22: 14:22:00 | D22: =Gruppen!S24 -> Marko Straßburger | E22: 1 | F22: 2 | G22: =Gruppen!T24 -> Andreas Hartung
A23: Tisch | B23: 1 | C23: 14:23:00 | D23: =Gruppen!S25 -> Marco Weber | E23: 1 | F23: 2 | G23: =Gruppen!T25 -> Max Weber | H23: 56 | I23: 34
A24: Tisch | B24: 4 | C24: 14:35:00 | D24: =Gruppen!S34 -> Tino Delling | E24: 0 | F24: 2 | G24: =Gruppen!T34 -> Magnus Suttner
A25: Tisch | B25: 2 | C25: 15:01:00 | D25: =Gruppen!S16 -> Felix Kirsten | E25: 2 | F25: 0 | G25: =Gruppen!T16 -> Andreas Fandrei | H25: 30
A26: Tisch | B26: 3 | C26: 15:08:00 | D26: =Gruppen!S7 -> Marec Stachly | E26: 2 | F26: 0 | G26: =Gruppen!T7 -> Paul Jeroch

Sheet Finals
B1: CHAMPIONS CUP - 2022 - Finals
B2: Viertelfinals | C2: Bo5 | D2: Break | F2: Halbfinals | G2: Bo5 | H2: Break | J2: Finals | K2: Bo7 | L2: Break | P2: Ranking
P3: 1 | Q3: =IF($K$10<$K$11,$J$11,IF($K$11<$K$10,$J$10,"")) -> Felix Kirsten
P4: 2 | Q4: =IF($K$10>$K$11,$J$11,IF($K$11>$K$10,$J$10,"")) -> Marec Stachly
A5: A1 | B5: =IFERROR(VLOOKUP(1,Gruppen!M2:O5,3,FALSE),"") -> Marec Stachly | C5: 3 | P5: 3 | Q5: =IF($K$15>$K$16,$J$15,IF($K$16>$K$15,$J$16,"")) -> Joel Fandrei
A6: D2 | B6: =IFERROR(VLOOKUP(2,Gruppen!M29:O32,3,FALSE),"") -> Moritz Thomas | C6: 0 | P6: 4 | Q6: =IF($K$15<$K$16,$J$15,IF($K$16<$K$15,$J$16,"")) -> Magnus Suttner
P7: 5 | Q7: =IF(C5>C6,B6,IF(C6>C5,B5,"")) -> Moritz Thomas
A8: C1 | B8: =IFERROR(VLOOKUP(1,Gruppen!M20:O23,3,FALSE),"") -> Max Weber | C8: 2 | E8: HF1 | F8: =IF(C5=C6,"",IF(C5>C6,B5,B6)) -> Marec Stachly | G8: 3 | H8: 59 | P8: 5 | Q8: =IF(C8>C9,B9,IF(C9>C8,B8,"")) -> Max Weber
A9: B2 | B9: =IFERROR(VLOOKUP(2,Gruppen!M11:O14,3,FALSE),"") -> Joel Fandrei | C9: 3 | F9: =IF($C$8=$C$9,"",IF($C$8>$C$9,$B$8,$B$9)) -> Joel Fandrei | G9: 0 | H9: 36 | J9: FINALE CHAMPIONS CUP | N9: Sieger | P9: 5 | Q9: =IF(C12>C13,B13,IF(C13>C12,B12,"")) -> Marco Weber
J10: =IF(G8=G9,"",IF(G8>G9,F8,F9)) -> Marec Stachly | K10: 0 | N10: =IF(K10=K11,"",IF(K10>K11,J10,J11)) -> Felix Kirsten | P10: 5 | Q10: =IF(C15>C16,B16,IF(C16>C15,B15,"")) -> Ali Kirim
J11: =IF(G12=G13,"",IF(G12>G13,F12,F13)) -> Felix Kirsten | K11: 3 | L11: 35.35 | N11: Champions Cup Champion | P11: 9 | Q11: =_xlfn.IFNA(VLOOKUP(3,Gruppen!$M$2:$O$5,3,FALSE),"") -> Paul Jeroch
A12: B1 | B12: =IFERROR(VLOOKUP(1,Gruppen!M11:O14,3,FALSE),"") -> Felix Kirsten | C12: 3 | E12: HF2 | F12: =IF(C12=C13,"",IF(C12>C13,B12,B13)) -> Felix Kirsten | G12: 3 | P12: 9 | Q12: =_xlfn.IFNA(VLOOKUP(3,Gruppen!$M$11:$O$14,3,FALSE),"") -> Andreas Fandrei
A13: C2 | B13: =IFERROR(VLOOKUP(2,Gruppen!M20:O23,3,FALSE),"") -> Marco Weber | C13: 1 | F13: =IF($C$15=$C$16,"",IF($C$15>$C$16,$B$15,$B$16)) -> Magnus Suttner | G13: 1 | P13: 9 | Q13: =_xlfn.IFNA(VLOOKUP(3,Gruppen!$M$20:$O$23,3,FALSE),"") -> Andreas Hartung
J14: Spiel um Platz 3 | K14: Bo3 | P14: 9 | Q14: =_xlfn.IFNA(VLOOKUP(3,Gruppen!$M$29:$O$32,3,FALSE),"") -> Tino Delling
A15: D1 | B15: =IFERROR(VLOOKUP(1,Gruppen!M29:O32,3,FALSE),"") -> Magnus Suttner | C15: 3 | J15: =IF(G8=G9,"",IF(G8<G9,F8,F9)) -> Joel Fandrei | K15: 1 | P15: 13 | Q15: =_xlfn.IFNA(VLOOKUP(4,Gruppen!$M$2:$O$5,3,FALSE),"") -> Gustav Hollnagel
A16: A2 | B16: =IFERROR(VLOOKUP(2,Gruppen!M2:O5,3,FALSE),"") -> Ali Kirim | C16: 2 | J16: =IF(G12=G13,"",IF(G12<G13,F12,F13)) -> Magnus Suttner | K16: 0 | P16: 13 | Q16: =_xlfn.IFNA(VLOOKUP(4,Gruppen!$M$11:$O$14,3,FALSE),"") -> Ronny Rejke
P17: 13 | Q17: =_xlfn.IFNA(VLOOKUP(4,Gruppen!$M$20:$O$23,3,FALSE),"") -> Marko Straßburger
P18: 13 | Q18: =_xlfn.IFNA(VLOOKUP(4,Gruppen!$M$29:$O$32,3,FALSE),"") -> Marcus Müller
